[Event "NJSK 2026 Meisjes C"]
[Site "Helmond, Netherlands"]
[Date "2026.05.01"]
[Round "7.6"]
[White "Gnanasekaran, Keerthi"]
[Black "Bakker, Hannah"]
[Result "1/2-1/2"]
[TimeControl "90min/40moves + 30min + 30sec/move"]
[WhiteTitle "-"]
[BlackTitle "-"]
[WhiteFideId "40110508"]
[BlackFideId "40107671"]
[WhiteElo "1647"]
[BlackElo "1634"]

1. e4 {[%clk 01:30:58]} e5 {[%clk 01:30:56]} {[%emt 00:00:04]} 2. Nf3 {[%clk
01:31:24]} {[%emt 00:00:04]} Nc6 {[%clk 01:31:14]} {[%emt 00:00:13]} 3. Bc4
{[%clk 01:31:48]} {[%emt 00:00:06]} Bc5 {[%clk 01:30:07]} {[%emt 00:01:38]} 4.
d3 {[%clk 01:32:11]} {[%emt 00:00:06]} Nf6 {[%clk 01:30:06]} {[%emt 00:00:32]}
5. Bg5 {[%clk 01:32:27]} {[%emt 00:00:13]} h6 {[%clk 01:29:46]} {[%emt
00:00:50]} 6. Bh4 {[%clk 01:32:50]} {[%emt 00:00:07]} d6 {[%clk 01:29:54]}
{[%emt 00:00:22]} 7. h3 {[%clk 01:30:46]} {[%emt 00:02:34]} Be6 {[%clk
01:28:49]} {[%emt 00:01:35]} 8. Nfd2 {[%clk 01:13:35]} {[%emt 00:17:40]} Qe7
{[%clk 01:23:08]} {[%emt 00:06:12]} 9. c3 {[%clk 01:11:40]} {[%emt 00:02:23]}
a6 {[%clk 01:19:46]} {[%emt 00:03:53]} 10. Nb3 {[%clk 01:01:53]} {[%emt
00:10:17]} Bb6 {[%clk 01:14:29]} {[%emt 00:05:47]} 11. N1d2 {[%clk 00:57:15]}
{[%emt 00:05:06]} O-O-O {[%clk 01:06:33]} {[%emt 00:08:27]} 12. Bd5 {[%clk
00:50:11]} {[%emt 00:07:33]} Bxd5 {[%clk 00:58:33]} {[%emt 00:08:31]} 13. exd5
{[%clk 00:50:12]} {[%emt 00:00:28]} Nb8 {[%clk 00:58:05]} {[%emt 00:00:59]} 14.
c4 {[%clk 00:34:53]} {[%emt 00:15:47]} Nbd7 {[%clk 00:49:49]} {[%emt 00:08:48]}
15. Qc2 {[%clk 00:29:24]} {[%emt 00:05:59]} Rhe8 {[%clk 00:41:31]} {[%emt
00:08:47]} 16. Ne4 {[%clk 00:26:05]} {[%emt 00:03:48]} g5 {[%clk 00:34:24]}
{[%emt 00:07:37]} 17. Bg3 {[%clk 00:25:42]} {[%emt 00:00:53]} Nxe4 {[%clk
00:33:48]} {[%emt 00:01:06]} 18. dxe4 {[%clk 00:25:54]} {[%emt 00:00:18]} Nc5
{[%clk 00:32:55]} {[%emt 00:01:24]} 19. Nxc5 {[%clk 00:24:19]} {[%emt
00:02:06]} Bxc5 {[%clk 00:33:08]} {[%emt 00:00:18]} 20. a3 {[%clk 00:23:13]}
{[%emt 00:01:36]} Bd4 {[%clk 00:29:36]} {[%emt 00:04:01]} 21. O-O-O {[%clk
00:22:47]} {[%emt 00:00:57]} Rg8 {[%clk 00:24:51]} {[%emt 00:05:15]} 22. f3
{[%clk 00:14:38]} {[%emt 00:08:38]} Rdf8 {[%clk 00:20:40]} {[%emt 00:04:41]} 23.
b4 {[%clk 00:13:09]} {[%emt 00:01:59]} b6 {[%clk 00:16:06]} {[%emt 00:05:04]}
24. Bf2 {[%clk 00:10:40]} {[%emt 00:02:57]} Bxf2 {[%clk 00:14:41]} {[%emt
00:01:57]} 25. Qxf2 {[%clk 00:11:05]} {[%emt 00:00:06]} f5 {[%clk 00:12:35]}
{[%emt 00:02:36]} 26. Rhe1 {[%clk 00:09:21]} {[%emt 00:02:13]} Qh7 {[%clk
00:09:33]} {[%emt 00:03:32]} 27. Qe2 {[%clk 00:07:03]} {[%emt 00:02:47]} fxe4
{[%clk 00:07:21]} {[%emt 00:02:43]} 28. fxe4 {[%clk 00:06:38]} {[%emt
00:00:54]} Rf4 {[%clk 00:07:00]} {[%emt 00:00:52]} 29. g3 {[%clk 00:06:52]}
{[%emt 00:00:15]} Rf6 {[%clk 00:06:31]} {[%emt 00:00:59]} 30. Rf1 {[%clk
00:05:26]} {[%emt 00:01:56]} Rgf8 {[%clk 00:05:43]} {[%emt 00:01:19]} 31. Rxf6
{[%clk 00:05:53]} {[%emt 00:00:03]} Rxf6 {[%clk 00:06:00]} {[%emt 00:00:13]} 32.
Re1 {[%clk 00:04:28]} {[%emt 00:01:54]} Kb7 {[%clk 00:04:45]} {[%emt 00:01:46]}
1/2-1/2

[Event "NJSK 2026 Meisjes C"]
[Site "Helmond, Netherlands"]
[Date "2026.05.01"]
[Round "7.8"]
[White "Jongejan, Evienne"]
[Black "Barbier, Sarah"]
[Result "1-0"]
[TimeControl "90min/40moves + 30min + 30sec/move"]
[WhiteTitle "-"]
[BlackTitle "-"]
[WhiteFideId "40109798"]
[BlackFideId "1095420"]
[WhiteElo "1488"]
[BlackElo "1487"]

1. e4 {[%clk 01:30:58]} {[%emt 00:00:02]} e5 {[%clk 01:30:56]} {[%emt
00:00:05]} 2. Nf3 {[%clk 01:31:18]} {[%emt 00:00:09]} Nc6 {[%clk 01:31:20]}
{[%emt 00:00:06]} 3. d4 {[%clk 01:31:43]} {[%emt 00:00:05]} exd4 {[%clk
01:31:34]} {[%emt 00:00:16]} 4. Nxd4 {[%clk 01:32:05]} {[%emt 00:00:08]} Bb4+
{[%clk 01:31:29]} {[%emt 00:00:35]} 5. Nc3 {[%clk 01:29:18]} {[%emt 00:03:17]}
Nf6 {[%clk 01:31:17]} {[%emt 00:00:42]} 6. Nxc6 {[%clk 01:29:02]} {[%emt
00:00:46]} bxc6 {[%clk 01:31:29]} {[%emt 00:00:18]} 7. Bd3 {[%clk 01:28:51]}
{[%emt 00:00:41]} d5 {[%clk 01:29:25]} {[%emt 00:02:34]} 8. exd5 {[%clk
01:29:10]} {[%emt 00:00:11]} cxd5 {[%clk 01:29:20]} {[%emt 00:00:35]} 9. O-O
{[%clk 01:29:18]} {[%emt 00:00:21]} O-O {[%clk 01:26:36]} {[%emt 00:03:15]} 10.
Bg5 {[%clk 01:28:42]} {[%emt 00:01:06]} c6 {[%clk 01:25:48]} {[%emt 00:01:17]}
11. Qf3 {[%clk 01:24:49]} {[%emt 00:04:23]} Qd6 {[%clk 01:23:56]} {[%emt
00:02:23]} 12. Qg3 {[%clk 01:22:12]} {[%emt 00:03:07]} Qe6 {[%clk 01:16:35]}
{[%emt 00:07:50]} 13. Bxf6 {[%clk 01:21:53]} {[%emt 00:00:49]} Qxf6 {[%clk
01:16:42]} {[%emt 00:00:23]} 14. Rfe1 {[%clk 01:21:10]} {[%emt 00:01:14]} Bf5
{[%clk 01:08:50]} {[%emt 00:08:21]} 15. Qf4 {[%clk 01:13:00]} {[%emt 00:08:41]}
Bxd3 {[%clk 01:07:11]} {[%emt 00:02:09]} 16. Qxf6 {[%clk 01:13:16]} {[%emt
00:00:14]} gxf6 {[%clk 01:07:24]} {[%emt 00:00:17]} 17. cxd3 {[%clk 01:13:42]}
{[%emt 00:00:05]} d4 {[%emt 00:02:19]} 18. Re4 {[%clk 01:14:03]} Rfd8 {[%clk
00:56:17]} {[%emt 00:09:56]} 19. Ne2 {[%clk 01:13:59]} {[%emt 00:00:34]} c5
{[%clk 00:55:51]} {[%emt 00:00:57]} 20. Rg4+ {[%clk 01:13:59]} {[%emt
00:00:29]} Kh8 {[%clk 00:55:20]} {[%emt 00:01:01]} 21. Nf4 {[%clk 01:14:02]}
{[%emt 00:00:27]} Rd6 {[%clk 00:52:31]} {[%emt 00:03:19]} 22. Nh5 {[%clk
01:13:13]} {[%emt 00:01:19]} Re8 {[%clk 00:46:10]} {[%emt 00:06:50]} 23. Kf1
{[%clk 01:11:15]} {[%emt 00:02:28]} c4 {[%clk 00:45:22]} {[%emt 00:01:19]} 24.
Nf4 {[%clk 01:04:41]} {[%emt 00:07:03]} c3 {[%clk 00:44:35]} {[%emt 00:01:18]}
25. bxc3 {[%clk 01:04:45]} {[%emt 00:00:27]} dxc3 {[%clk 00:44:28]} {[%emt
00:00:36]} 26. Ne2 {[%clk 01:01:56]} {[%emt 00:03:18]} Ba3 {[%clk 00:34:11]}
{[%emt 00:10:48]} 27. Nxc3 {[%clk 00:58:09]} {[%emt 00:04:17]} Bb2 {[%clk
00:34:05]} {[%emt 00:00:36]} 28. Nb5 {[%clk 00:58:04]} {[%emt 00:00:35]} Rb6
{[%clk 00:33:55]} {[%emt 00:00:40]} 29. Nc7 {[%clk 00:58:04]} {[%emt 00:00:30]}
Rc8 {[%clk 00:32:31]} {[%emt 00:01:53]} 30. Re1 {[%clk 00:57:18]} {[%emt
00:01:16]} Be5 {[%clk 00:30:32]} {[%emt 00:02:30]} 31. Nd5 {[%clk 00:56:42]}
{[%emt 00:01:06]} Rd6 {[%clk 00:28:14]} {[%emt 00:02:47]} 32. Ne7 {[%clk
00:56:01]} {[%emt 00:01:11]} Re8 {[%clk 00:27:59]} {[%emt 00:00:46]} 33. Nf5
{[%clk 00:56:12]} {[%emt 00:00:19]} Rxd3 {[%clk 00:28:00]} {[%emt 00:00:28]} 34.
f4 {[%clk 00:55:25]} {[%emt 00:01:18]} Rd2 {[%clk 00:22:37]} {[%emt 00:05:52]}
35. fxe5 {[%clk 00:55:10]} {[%emt 00:00:46]} fxe5 {[%clk 00:23:03]} {[%emt
00:00:02]} 36. Nh6 {[%clk 00:54:48]} {[%emt 00:00:54]} Rf8 {[%clk 00:22:37]}
{[%emt 00:00:56]} 37. Rb1 {[%clk 00:53:42]} {[%emt 00:01:37]} Rd7 {[%clk
00:22:37]} {[%emt 00:00:30]} 38. Rb3 {[%clk 00:50:34]} {[%emt 00:03:38]} f5
{[%clk 00:19:33]} {[%emt 00:03:32]} 39. Rg5 {[%clk 00:49:17]} {[%emt 00:01:48]}
Rd6 {[%clk 00:19:26]} {[%emt 00:00:36]} 40. Nf7+ {[%clk 00:49:12]} {[%emt
00:00:35]} Rxf7 {[%clk 00:18:48]} {[%emt 00:01:08]} 41. Rb8+ {[%clk 00:49:37]}
{[%emt 00:00:05]} Rd8 {[%clk 00:19:07]} {[%emt 00:00:12]} 42. Rxd8+ {[%clk
00:50:03]} {[%emt 00:00:04]} Rf8 {[%clk 00:19:28]} {[%emt 00:00:09]} 43. Rxf8#
{[%clk 00:49:51]} {[%emt 00:00:07]} 1-0

[Event "NJSK 2026 Meisjes C"]
[Site "Helmond, Netherlands"]
[Date "2026.05.01"]
[Round "8.1"]
[White "Ngangbam, Malem"]
[Black "Luong, Thao"]
[Result "0-1"]
[TimeControl "90min/40moves + 30min + 30sec/move"]
[WhiteTitle "-"]
[BlackTitle "-"]
[WhiteFideId "40102343"]
[BlackFideId "1091980"]
[WhiteElo "1600"]
[BlackElo "1855"]

1. e4 {[%clk 00:05:05]} {[%emt 00:00:02]} e5 {[%clk 00:05:06]} 2. Nf3 {[%clk
00:05:06]} {[%emt 00:00:01]} Nc6 {[%clk 00:05:08]} 3. Bc4 {[%clk 00:05:07]}
{[%emt 00:00:03]} Bc5 {[%clk 00:05:10]} 4. c3 {[%emt 00:00:04]} Nf6 {[%clk
00:05:12]} 5. b4 {[%clk 00:05:11]} Bb6 {[%clk 00:05:13]} {[%emt 00:00:03]} 6.
d3 {[%clk 00:05:13]} d6 {[%clk 00:05:09]} {[%emt 00:00:08]} 7. Nbd2 {[%clk
00:05:14]} {[%emt 00:00:02]} Be6 {[%clk 00:04:50]} {[%emt 00:00:22]} 8. a4
{[%clk 00:05:06]} {[%emt 00:00:10]} a5 {[%clk 00:04:44]} {[%emt 00:00:09]} 9.
b5 {[%clk 00:05:08]} {[%emt 00:00:02]} Ne7 {[%clk 00:04:40]} {[%emt 00:00:06]}
10. Qb3 {[%clk 00:05:07]} {[%emt 00:00:04]} Qc8 {[%clk 00:04:00]} {[%emt
00:00:43]} 11. Ba3 {[%clk 00:04:36]} {[%emt 00:00:34]} Bc5 {[%clk 00:03:18]}
{[%emt 00:00:46]} 12. Bxc5 {[%clk 00:04:33]} {[%emt 00:00:05]} dxc5 {[%clk
00:03:19]} {[%emt 00:00:02]} 13. Nxe5 {[%clk 00:04:29]} {[%emt 00:00:06]} O-O
{[%clk 00:02:57]} {[%emt 00:00:26]} 14. O-O {[%clk 00:04:02]} {[%emt 00:00:30]}
c6 {[%clk 00:02:53]} {[%emt 00:00:07]} 15. f4 {[%clk 00:03:45]} {[%emt
00:00:19]} cxb5 {[%clk 00:02:48]} {[%emt 00:00:08]} 16. axb5 {[%clk 00:03:47]}
{[%emt 00:00:02]} Bxc4 {[%clk 00:02:30]} {[%emt 00:00:21]} 17. Ndxc4 {[%clk
00:03:48]} {[%emt 00:00:01]} Qc7 {[%clk 00:02:29]} {[%emt 00:00:04]} 18. Rf3
{[%clk 00:03:30]} {[%emt 00:00:22]} Kh8 {[%clk 00:02:11]} {[%emt 00:00:20]} 19.
Rh3 {[%clk 00:03:22]} {[%emt 00:00:11]} Rad8 {[%clk 00:01:55]} {[%emt
00:00:19]} 20. b6 {[%clk 00:02:38]} {[%emt 00:00:47]} Qc8 {[%clk 00:01:38]}
{[%emt 00:00:20]} 21. Rxa5 {[%clk 00:02:30]} {[%emt 00:00:13]} Ng4 {[%clk
00:01:31]} {[%emt 00:00:09]} 22. Qd1 {[%clk 00:02:05]} {[%emt 00:00:28]} Nxe5
{[%clk 00:01:27]} {[%emt 00:00:08]} 23. Nxe5 {[%clk 00:02:05]} {[%emt
00:00:02]} f6 {[%clk 00:01:15]} {[%emt 00:00:16]} 24. Qh5 {[%clk 00:01:59]}
{[%emt 00:00:08]} h6 {[%clk 00:01:08]} {[%emt 00:00:10]} 25. Ng4 {[%clk
00:01:46]} {[%emt 00:00:14]} Ng8 {[%clk 00:00:57]} {[%emt 00:00:16]} 26. f5
{[%clk 00:01:04]} {[%emt 00:00:47]} c4 {[%clk 00:00:43]} {[%emt 00:00:14]} 27.
d4 {[%clk 00:01:05]} {[%emt 00:00:01]} Qd7 {[%clk 00:00:33]} {[%emt 00:00:13]}
28. Rd5 {[%clk 00:00:33]} {[%emt 00:00:35]} Qa4 {[%clk 00:00:35]} {[%emt
00:00:01]} 29. Rxd8 {[%clk 00:00:31]} {[%emt 00:00:06]} Qd1+ {[%clk 00:00:34]}
{[%emt 00:00:04]} 30. Kf2 {[%clk 00:00:30]} {[%emt 00:00:04]} Qd2+ {[%clk
00:00:35]} {[%emt 00:00:02]} 31. Kg3 {[%clk 00:00:21]} {[%emt 00:00:12]} Qxc3+
{[%clk 00:00:34]} {[%emt 00:00:04]} 32. Kh4 {[%clk 00:00:14]} {[%emt 00:00:09]}
Qe1+ {[%clk 00:00:36]} 33. g3 {[%clk 00:00:16]} {[%emt 00:00:02]} Rxd8 {[%clk
00:00:34]} {[%emt 00:00:05]} 34. Qg6 {[%clk 00:00:08]} {[%emt 00:00:12]} Qd2
{[%clk 00:00:26]} {[%emt 00:00:09]} 0-1

[Event "NJSK 2026 Meisjes C"]
[Site "Helmond, Netherlands"]
[Date "2026.05.01"]
[Round "9.1"]
[White "Luong, Thao"]
[Black "Ngangbam, Malem"]
[Result "1-0"]
[TimeControl "90min/40moves + 30min + 30sec/move"]
[WhiteTitle "-"]
[BlackTitle "-"]
[WhiteFideId "1091980"]
[BlackFideId "40102343"]
[WhiteElo "1855"]
[BlackElo "1600"]

1. e4 {[%clk 00:05:05]} e5 {[%clk 00:05:05]} 2. Nf3 {[%clk 00:05:07]} Nc6
{[%clk 00:05:08]} 3. Bc4 {[%clk 00:05:09]} Nf6 {[%clk 00:05:10]} {[%emt
00:00:02]} 4. d3 {[%clk 00:05:11]} Bc5 {[%clk 00:05:11]} {[%emt 00:00:01]} 5.
c3 {[%clk 00:05:13]} d6 {[%clk 00:05:08]} {[%emt 00:00:06]} 6. Nbd2 {[%clk
00:05:13]} {[%emt 00:00:03]} a6 {[%clk 00:05:09]} {[%emt 00:00:02]} 7. a4
{[%clk 00:05:11]} {[%emt 00:00:05]} Ba7 {[%clk 00:05:10]} {[%emt 00:00:03]} 8.
h3 {[%clk 00:05:13]} Be6 {[%clk 00:05:07]} {[%emt 00:00:06]} 9. Bb3 {[%clk
00:05:14]} {[%emt 00:00:01]} d5 {[%clk 00:04:56]} {[%emt 00:00:14]} 10. Bc2
{[%clk 00:05:09]} {[%emt 00:00:08]} d4 {[%clk 00:04:50]} {[%emt 00:00:09]} 11.
Nf1 {[%clk 00:05:03]} {[%emt 00:00:09]} O-O {[%clk 00:04:36]} {[%emt 00:00:17]}
12. Ng3 {[%clk 00:04:59]} {[%emt 00:00:07]} Qd6 {[%clk 00:04:27]} {[%emt
00:00:12]} 13. Nh4 {[%clk 00:04:57]} {[%emt 00:00:05]} Ne7 {[%clk 00:04:21]}
{[%emt 00:00:10]} 14. O-O {[%clk 00:04:51]} {[%emt 00:00:08]} Nd7 {[%clk
00:04:14]} {[%emt 00:00:11]} 15. Ngf5 {[%clk 00:04:10]} {[%emt 00:00:43]} Bxf5
{[%clk 00:04:07]} {[%emt 00:00:10]} 16. Nxf5 {[%clk 00:04:04]} {[%emt
00:00:10]} Nxf5 {[%clk 00:04:08]} {[%emt 00:00:01]} 17. exf5 {[%clk 00:04:05]}
{[%emt 00:00:02]} Qf6 {[%clk 00:03:45]} {[%emt 00:00:26]} 18. Qf3 {[%clk
00:03:58]} {[%emt 00:00:09]} c6 {[%clk 00:03:11]} {[%emt 00:00:38]} 19. c4
{[%clk 00:03:53]} {[%emt 00:00:08]} Rfe8 {[%clk 00:03:07]} {[%emt 00:00:08]} 20.
b4 {[%clk 00:03:38]} {[%emt 00:00:18]} e4 {[%clk 00:02:21]} {[%emt 00:00:49]}
21. Qg4 {[%clk 00:03:28]} {[%emt 00:00:12]} exd3 {[%clk 00:02:11]} {[%emt
00:00:13]} 22. Bxd3 {[%clk 00:03:15]} {[%emt 00:00:16]} Ne5 {[%clk 00:02:12]}
{[%emt 00:00:03]} 23. Qd1 {[%clk 00:03:10]} {[%emt 00:00:07]} Nxd3 {[%clk
00:01:39]} {[%emt 00:00:37]} 24. Qxd3 {[%clk 00:03:12]} {[%emt 00:00:02]} Re5
{[%clk 00:01:30]} {[%emt 00:00:11]} 25. Bb2 {[%clk 00:02:41]} {[%emt 00:00:35]}
Rae8 {[%clk 00:00:56]} {[%emt 00:00:38]} 26. c5 {[%clk 00:02:31]} {[%emt
00:00:12]} Rd5 {[%clk 00:00:35]} {[%emt 00:00:24]} 27. Rae1 {[%clk 00:02:30]}
{[%emt 00:00:06]} Rxe1 {[%clk 00:00:29]} {[%emt 00:00:07]} 28. Rxe1 {[%clk
00:02:32]} {[%emt 00:00:02]} h6 {[%clk 00:00:31]} {[%emt 00:00:01]} 29. Re8+
{[%clk 00:02:20]} {[%emt 00:00:15]} Kh7 {[%clk 00:00:27]} {[%emt 00:00:06]} 30.
Ra8 {[%clk 00:02:13]} {[%emt 00:00:10]} Bxc5 {[%clk 00:00:17]} {[%emt
00:00:14]} 31. bxc5 {[%clk 00:02:14]} {[%emt 00:00:01]} Qe5 {[%clk 00:00:17]}
{[%emt 00:00:02]} 32. f6+ {[%clk 00:02:09]} {[%emt 00:00:09]} g6 {[%clk
00:00:19]} {[%emt 00:00:01]} 33. Qd2 {[%clk 00:01:24]} {[%emt 00:00:48]} Qxf6
{[%clk 00:00:13]} {[%emt 00:00:10]} 34. Bc1 {[%clk 00:01:19]} {[%emt 00:00:07]}
g5 {[%clk 00:00:12]} {[%emt 00:00:04]} 35. Qd3+ {[%clk 00:01:14]} {[%emt
00:00:08]} Kg7 {[%clk 00:00:11]} {[%emt 00:00:04]} 36. Bb2 {[%clk 00:01:08]}
{[%emt 00:00:09]} Qe5 {[%clk 00:00:10]} {[%emt 00:00:04]} 37. Qd2 {[%clk
00:00:57]} {[%emt 00:00:15]} Qf6 {[%clk 00:00:05]} {[%emt 00:00:08]} 38. Qd3
{[%clk 00:00:49]} {[%emt 00:00:11]} Qe5 {[%clk 00:00:00]} {[%emt 00:00:05]} 1-0